[Event "African Games-chT 2019"]
[Site "Casablanca"]
[Date "2019.08.24"]
[Round "3.25"]
[White "Beukes, Dante M"]
[Black "Mesfin, Leykun"]
[Result "1-0"]
[ECO "B90"]
[WhiteElo "2130"]
[BlackElo "2151"]
[Annotator "NA"]
[PlyCount "61"]
[EventDate "2019.08.24"]
[EventType "team-tourn"]
[EventCountry "MAR"]
[SourceTitle "playchess.com"]
[Source "ChessBase"]
[SourceQuality "1"]
[WhiteTeam "Namibia"]
[BlackTeam "Ethiopia"]
[WhiteTeamCountry "NAM"]
[BlackTeamCountry "ETH"]
[TimeControl "900+10"]

1. e4 {[%emt 0:00:00]} c5 {[%emt 0:00:02]} 2. Nf3 {[%emt 0:00:04]} d6 {[%emt 0:00:01]} 3. d4 {[%emt 0:00:01]} cxd4 {[%emt 0:00:01]} 4. Nxd4 {[%emt 0:00:01]} Nf6 {[%emt 0:00:01]} 5. Nc3 {[%emt 0:00:03]} a6 {[%emt 0:00:01]} 6. h4 {[%emt 0:00:14]} e5 {[%emt 0:00:13]} 7. Nb3 {[%emt 0:00:04]} Be6 {[%emt 0:00:02]} 8. f4 {[%emt 0:00:13]} Nc6 {[%emt 0:00:31]} 9. f5 {[%emt 0:00:02]} Bxb3 {[%emt 0:00:25]} 10. axb3 {[%emt 0:00:05]} Rc8 {[%emt 0:01:04]} 11. Bg5 {[%emt 0:00:46]} Be7 {[%emt 0:00:04]} 12. Bc4 {[%emt 0:00:29]} Nd4 {[%emt 0:00:24]} 13. Be3 {[%emt 0:01:10]} Qb6 {[%emt 0:00:36]} 14. O-O {[%emt 0:01:54]} O-O {[%emt 0:01:47]} 15. g4 {[%emt 0:00:26]} Rxc4 {[%emt 0:04:53]} 16. bxc4 {[%emt 0:00:21]} Qxb2 {[%emt 0:00:10]} 17. Na4 {[%emt 0:03:01]} Qxc2 {[%emt 0:01:02]} 18. Bxd4 {[%emt 0:00:05]} Qxd1 {[%emt 0:00:19]} 19. Raxd1 {[%emt 0:00:20]} exd4 {[%emt 0:00:10]} 20. g5 {[%emt 0:00:01]} Ng4 {[%emt 0:00:29]} 21. Rxd4 {[%emt 0:00:08]} Rc8 {[%emt 0:00:17]} 22. Nb6 {[%emt 0:00:31]} Rc6 {[%emt 0:00:28]} 23. Nd5 {[%emt 0:00:02]} Bf8 {[%emt 0:00:00]} 24. Rb1 {[%emt 0:00:11]} Ne5 {[%emt 0:00:06]} 25. Rxb7 {[%emt 0:00:11]} Nf3+ {[%emt 0:00:02]} 26. Kf2 {[%emt 0:00:09]} Nxd4 {[%emt 0:00:04]} 27. Rb8 {[%emt 0:00:07]} f6 {[%emt 0:03:53]} 28. g6 {[%emt 0:00:29]} hxg6 {[%emt 0:01:39]} 29. fxg6 {[%emt 0:00:09]} Ne6 {[%emt 0:00:31]} 30. Ne7+ {[%emt 0:00:09]} Kh8 {[%emt 0:00:04]} 31. Nxc6 {[%emt 0:00:02]} 1-0

[Event "African Games-chT 2019"]
[Site "Casablanca"]
[Date "2019.08.24"]
[Round "3.26"]
[White "Gole, Habtamu Ashenafi"]
[Black "Eichab, Charles"]
[Result "1/2-1/2"]
[ECO "C05"]
[WhiteElo "2046"]
[BlackElo "2016"]
[Annotator "NA"]
[PlyCount "194"]
[EventDate "2019.08.24"]
[EventType "team-tourn"]
[EventCountry "MAR"]
[SourceTitle "playchess.com"]
[Source "ChessBase"]
[SourceQuality "1"]
[WhiteTeam "Ethiopia"]
[BlackTeam "Namibia"]
[WhiteTeamCountry "ETH"]
[BlackTeamCountry "NAM"]
[TimeControl "900+10"]

1. e4 {[%emt 0:00:00]} e6 {[%emt 0:00:00]} 2. d4 {[%emt 0:00:00]} d5 {[%emt 0:00:00]} 3. Nd2 {[%emt 0:00:00]} Nf6 {[%emt 0:00:00]} 4. e5 {[%emt 0:00:04]} Nfd7 {[%emt 0:00:00]} 5. f4 {[%emt 0:00:09]} c5 {[%emt 0:00:00]} 6. c3 {[%emt 0:00:03]} Nc6 {[%emt 0:00:38]} 7. Ngf3 {[%emt 0:00:02]} Qb6 {[%emt 0:00:07]} 8. Nb3 {[%emt 0:00:11]} a5 {[%emt 0:00:09]} 9. a4 {[%emt 0:00:38]} Be7 {[%emt 0:01:27]} 10. Be2 {[%emt 0:00:05]} O-O {[%emt 0:00:22]} 11. O-O {[%emt 0:00:09]} f6 {[%emt 0:00:28]} 12. Kh1 {[%emt 0:00:08]} c4 {[%emt 0:05:35]} 13. Nbd2 {[%emt 0:00:10]} Qd8 {[%emt 0:00:15]} 14. Ng1 {[%emt 0:00:33]} Nb6 {[%emt 0:00:04]} 15. Qe1 {[%emt 0:00:29]} Bd7 {[%emt 0:00:23]} 16. Bd1 {[%emt 0:00:03]} Qe8 {[%emt 0:00:17]} 17. Bc2 {[%emt 0:00:04]} Nd8 {[%emt 0:01:21]} 18. Qd1 {[%emt 0:00:12]} Nf7 {[%emt 0:00:46]} 19. Ndf3 {[%emt 0:00:25]} Nh6 {[%emt 0:00:55]} 20. Ne2 {[%emt 0:00:45]} f5 {[%emt 0:01:37]} 21. Ng3 {[%emt 0:00:39]} Qg6 {[%emt 0:00:23]} 22. Qe1 {[%emt 0:01:02]} Ng4 {[%emt 0:00:30]} 23. h3 {[%emt 0:00:47]} Nh6 {[%emt 0:00:05]} 24. Kh2 {[%emt 0:01:00]} Qe8 {[%emt 0:00:22]} 25. Qd1 {[%emt 0:00:08]} Qg6 {[%emt 0:00:01]} 26. Bd2 {[%emt 0:00:13]} Ra6 {[%emt 0:00:18]} 27. Nh1 {[%emt 0:00:56]} Raa8 {[%emt 0:00:07]} 28. g4 {[%emt 0:02:19]} Qe8 {[%emt 0:01:49]} 29. g5 {[%emt 0:00:12]} Nf7 {[%emt 0:00:02]} 30. Ng3 {[%emt 0:01:05]} Nh8 {[%emt 0:00:11]} 31. h4 {[%emt 0:00:40]} h5 {[%emt 0:00:39]} 32. gxh6 {[%emt 0:00:25]} gxh6 {[%emt 0:00:01]} 33. Rg1 {[%emt 0:00:09]} Kh7 {[%emt 0:00:02]} 34. Nh5 {[%emt 0:00:51]} Rg8 {[%emt 0:00:30]} 35. Rxg8 {[%emt 0:00:38]} Qxg8 {[%emt 0:00:05]} 36. Qe2 {[%emt 0:00:13]} Qf7 {[%emt 0:00:20]} 37. Rg1 {[%emt 0:00:18]} Rg8 {[%emt 0:00:01]} 38. Kh3 {[%emt 0:01:15]} Be8 {[%emt 0:00:44]} 39. Ng3 {[%emt 0:00:23]} Nxa4 {[%emt 0:00:29]} 40. Be3 {[%emt 0:00:26]} Nb6 {[%emt 0:00:06]} 41. Qd1 {[%emt 0:00:23]} Rg7 {[%emt 0:00:19]} 42. Qb1 {[%emt 0:00:09]} Kg8 {[%emt 0:00:02]} 43. Kh2 {[%emt 0:00:33]} Kf8 {[%emt 0:00:22]} 44. Qd1 {[%emt 0:00:24]} Rg4 {[%emt 0:00:09]} 45. Kh3 {[%emt 0:00:06]} Ng6 {[%emt 0:00:12]} 46. Ne2 {[%emt 0:00:40]} Nxh4 {[%emt 0:00:09]} 47. Nh2 {[%emt 0:01:10]} Rxg1 {[%emt 0:00:12]} 48. Nxg1 {[%emt 0:00:04]} Qg6 {[%emt 0:00:12]} 49. Qe2 {[%emt 0:00:09]} Qg7 {[%emt 0:00:08]} 50. Qf2 {[%emt 0:00:28]} h5 {[%emt 0:00:10]} 51. Bd1 {[%emt 0:00:07]} Bd8 {[%emt 0:00:12]} 52. Nhf3 {[%emt 0:00:06]} Qg4+ {[%emt 0:00:05]} 53. Kh2 {[%emt 0:00:05]} Nxf3+ {[%emt 0:00:12]} 54. Nxf3 {[%emt 0:00:07]} Qg7 {[%emt 0:00:15]} 55. Ng5 {[%emt 0:00:08]} Bxg5 {[%emt 0:00:06]} 56. fxg5 Bg6 {[%emt 0:00:02]} 57. Bf4 {[%emt 0:00:19]} Nc8 {[%emt 0:00:06]} 58. Qc2 {[%emt 0:00:07]} Qd7 {[%emt 0:00:04]} 59. Be2 {[%emt 0:00:22]} b5 {[%emt 0:00:02]} 60. Kg3 {[%emt 0:00:05]} b4 {[%emt 0:00:10]} 61. Qd1 {[%emt 0:00:22]} Qe8 {[%emt 0:00:14]} 62. Kh4 {[%emt 0:00:02]} b3 {[%emt 0:00:22]} 63. Qa1 {[%emt 0:00:26]} a4 {[%emt 0:00:11]} 64. Qa3+ {[%emt 0:00:01]} Kg7 {[%emt 0:00:20]} 65. Qb4 {[%emt 0:00:06]} Qe7 {[%emt 0:00:14]} 66. Qxa4 {[%emt 0:00:03]} Nb6 {[%emt 0:00:07]} 67. Qc6 {[%emt 0:00:02]} Nd7 {[%emt 0:00:01]} 68. Qc7 {[%emt 0:00:15]} Qf7 {[%emt 0:00:03]} 69. Qd6 {[%emt 0:00:06]} Nf8 {[%emt 0:00:04]} 70. Qd8 {[%emt 0:00:12]} Nd7 {[%emt 0:00:12]} 71. Bd1 {[%emt 0:00:02]} Kh7 {[%emt 0:00:06]} 72. Qc7 {[%emt 0:00:09]} Kg7 {[%emt 0:00:01]} 73. Qa5 {[%emt 0:00:24]} Qe8 {[%emt 0:00:04]} 74. Qa4 Qf7 {[%emt 0:00:19]} 75. Qa1 {[%emt 0:00:22]} Qe8 {[%emt 0:00:02]} 76. Bf3 {[%emt 0:00:06]} Nf8 {[%emt 0:00:40]} 77. Qa7+ {[%emt 0:00:07]} Nd7 {[%emt 0:00:06]} 78. Qa1 {[%emt 0:00:23]} Nf8 {[%emt 0:00:06]} 79. Qd1 {[%emt 0:00:00]} Qf7 {[%emt 0:00:08]} 80. Qg1 {[%emt 0:00:40]} Qe8 {[%emt 0:00:06]} 81. Qg2 {[%emt 0:00:13]} Qf7 {[%emt 0:00:07]} 82. Qe2 {[%emt 0:00:14]} Kh7 {[%emt 0:00:08]} 83. Qd1 {[%emt 0:00:19]} Kg7 {[%emt 0:00:10]} 84. Qa1 {[%emt 0:00:02]} Qb7 {[%emt 0:00:09]} 85. Qa4 {[%emt 0:00:03]} Qd7 {[%emt 0:00:10]} 86. Qb4 {[%emt 0:00:08]} Qf7 {[%emt 0:00:05]} 87. Qd6 {[%emt 0:00:04]} Qd7 {[%emt 0:00:06]} 88. Bxh5 {[%emt 0:00:40]} Bxh5 {[%emt 0:00:05]} 89. Kxh5 {[%emt 0:00:01]} Qf7+ {[%emt 0:00:14]} 90. Kh4 {[%emt 0:00:01]} Ng6+ {[%emt 0:00:26]} 91. Kg3 {[%emt 0:00:01]} Nxf4 92. Kxf4 {[%emt 0:00:04]} Qh5 {[%emt 0:00:40]} 93. Qe7+ {[%emt 0:00:10]} Kh8 {[%emt 0:00:08]} 94. Qf6+ {[%emt 0:00:24]} Kh7 {[%emt 0:00:06]} 95. Qe7+ {[%emt 0:00:42]} Kh8 {[%emt 0:00:07]} 96. Qf8+ {[%emt 0:00:28]} Kh7 {[%emt 0:00:07]} 97. Qe7+ {[%emt 0:00:03]} Kh8 1/2-1/2

[Event "African Games-chT 2019"]
[Site "Casablanca"]
[Date "2019.08.24"]
[Round "3.27"]
[White "Tjaronda, Nicola"]
[Black "Haile, Lidet Abate"]
[Result "1-0"]
[ECO "A20"]
[WhiteElo "1545"]
[BlackElo "1593"]
[Annotator "NA"]
[PlyCount "169"]
[EventDate "2019.08.24"]
[EventType "team-tourn"]
[EventCountry "MAR"]
[SourceTitle "playchess.com"]
[Source "ChessBase"]
[SourceQuality "1"]
[WhiteTeam "Namibia"]
[BlackTeam "Ethiopia"]
[WhiteTeamCountry "NAM"]
[BlackTeamCountry "ETH"]
[TimeControl "900+10"]

1. c4 e5 {[%emt 0:00:00]} 2. g3 {[%emt 0:00:00]} Nc6 {[%emt 0:00:00]} 3. Bg2 {[%emt 0:00:00]} Bc5 {[%emt 0:00:04]} 4. d3 {[%emt 0:00:04]} h6 {[%emt 0:00:09]} 5. Nc3 {[%emt 0:00:06]} Nf6 {[%emt 0:00:14]} 6. Nf3 {[%emt 0:00:01]} d6 {[%emt 0:00:05]} 7. O-O {[%emt 0:00:04]} O-O {[%emt 0:00:04]} 8. a3 {[%emt 0:00:03]} a6 {[%emt 0:00:02]} 9. b4 {[%emt 0:00:17]} Ba7 {[%emt 0:00:03]} 10. Bd2 {[%emt 0:00:23]} Bg4 {[%emt 0:00:12]} 11. Qc1 {[%emt 0:00:17]} Kh7 {[%emt 0:01:03]} 12. Be3 {[%emt 0:00:13]} Qe7 {[%emt 0:01:17]} 13. Bxa7 {[%emt 0:00:30]} Nxa7 {[%emt 0:00:19]} 14. Qe3 {[%emt 0:00:20]} Bh5 {[%emt 0:00:29]} 15. Nd2 Nc6 {[%emt 0:00:24]} 16. Nde4 {[%emt 0:00:46]} Rab8 {[%emt 0:01:27]} 17. Nxf6+ {[%emt 0:00:17]} Qxf6 {[%emt 0:00:06]} 18. Bxc6 {[%emt 0:01:37]} bxc6 {[%emt 0:00:03]} 19. Qe4+ {[%emt 0:00:01]} Bg6 {[%emt 0:00:15]} 20. Qxc6 {[%emt 0:00:12]} Rfe8 {[%emt 0:00:57]} 21. Qxc7 {[%emt 0:01:50]} e4 {[%emt 0:00:22]} 22. Nxe4 {[%emt 0:00:31]} Bxe4 {[%emt 0:00:05]} 23. dxe4 {[%emt 0:00:07]} Rbc8 {[%emt 0:00:03]} 24. Qd7 {[%emt 0:00:35]} Red8 {[%emt 0:00:42]} 25. Qf5+ {[%emt 0:00:53]} Qxf5 {[%emt 0:00:03]} 26. exf5 {[%emt 0:00:01]} Rxc4 {[%emt 0:00:02]} 27. f3 {[%emt 0:00:25]} Rc2 {[%emt 0:00:05]} 28. Kf2 {[%emt 0:00:06]} d5 {[%emt 0:00:25]} 29. Rfc1 {[%emt 0:00:30]} Rc4 {[%emt 0:00:42]} 30. Rxc4 {[%emt 0:00:14]} dxc4 {[%emt 0:00:01]} 31. Rc1 {[%emt 0:00:06]} Rc8 {[%emt 0:00:06]} 32. e4 {[%emt 0:00:06]} c3 {[%emt 0:00:15]} 33. Rc2 {[%emt 0:00:21]} g6 {[%emt 0:00:16]} 34. fxg6+ {[%emt 0:00:05]} Kxg6 {[%emt 0:00:03]} 35. Ke3 {[%emt 0:00:01]} f5 {[%emt 0:00:16]} 36. e5 {[%emt 0:00:28]} h5 {[%emt 0:00:24]} 37. Kd4 {[%emt 0:00:31]} h4 {[%emt 0:00:27]} 38. Rxc3 {[%emt 0:00:07]} Rd8+ {[%emt 0:00:08]} 39. Ke3 {[%emt 0:00:08]} hxg3 {[%emt 0:00:25]} 40. hxg3 {[%emt 0:00:02]} Kg5 {[%emt 0:00:21]} 41. Rc6 {[%emt 0:00:10]} Ra8 {[%emt 0:00:04]} 42. e6 {[%emt 0:00:10]} Kf6 {[%emt 0:00:03]} 43. Kf4 {[%emt 0:00:15]} a5 {[%emt 0:00:10]} 44. e7+ {[%emt 0:00:23]} Kxe7 {[%emt 0:00:04]} 45. Kxf5 {[%emt 0:00:01]} Rf8+ {[%emt 0:00:10]} 46. Ke4 {[%emt 0:00:03]} axb4 {[%emt 0:00:04]} 47. axb4 {[%emt 0:00:02]} Rb8 {[%emt 0:00:02]} 48. Rc4 {[%emt 0:00:03]} Kf6 {[%emt 0:00:15]} 49. f4 {[%emt 0:00:29]} Re8+ {[%emt 0:00:05]} 50. Kf3 {[%emt 0:00:02]} Rb8 {[%emt 0:00:17]} 51. g4 {[%emt 0:00:01]} Ra8 {[%emt 0:00:20]} 52. g5+ {[%emt 0:00:07]} Kf5 {[%emt 0:00:03]} 53. Rc5+ {[%emt 0:00:03]} Kg6 {[%emt 0:00:02]} 54. Kg4 {[%emt 0:00:04]} Ra1 {[%emt 0:00:35]} 55. Rc6+ {[%emt 0:00:12]} Kg7 {[%emt 0:00:08]} 56. Kf5 {[%emt 0:00:01]} Rb1 {[%emt 0:00:03]} 57. Rb6 {[%emt 0:00:05]} Rd1 {[%emt 0:01:01]} 58. Rb7+ {[%emt 0:00:49]} Kg8 {[%emt 0:00:04]} 59. b5 {[%emt 0:00:28]} Rd6 {[%emt 0:00:15]} 60. Re7 {[%emt 0:00:46]} Kf8 {[%emt 0:00:09]} 61. Re6 {[%emt 0:00:17]} Rd5+ {[%emt 0:00:04]} 62. Re5 {[%emt 0:00:02]} Rd6 {[%emt 0:00:01]} 63. g6 {[%emt 0:00:04]} Kg7 {[%emt 0:00:18]} 64. Re7+ {[%emt 0:00:09]} Kf8 {[%emt 0:00:29]} 65. g7+ {[%emt 0:00:38]} Kg8 {[%emt 0:00:08]} 66. Rb7 {[%emt 0:00:07]} Rh6 {[%emt 0:00:13]} 67. Kg5 {[%emt 0:00:15]} Rg6+ {[%emt 0:00:14]} 68. Kf5 {[%emt 0:00:09]} Rh6 {[%emt 0:00:07]} 69. Rb8+ {[%emt 0:00:06]} Kxg7 {[%emt 0:00:02]} 70. b6 {[%emt 0:00:08]} Rf6+ {[%emt 0:00:06]} 71. Ke5 {[%emt 0:00:02]} Rf7 {[%emt 0:00:25]} 72. b7 {[%emt 0:00:05]} Re7+ {[%emt 0:00:09]} 73. Kd6 {[%emt 0:00:07]} Rf7 {[%emt 0:00:06]} 74. Rg8+ {[%emt 0:00:18]} Kxg8 {[%emt 0:00:07]} 75. b8=Q+ {[%emt 0:00:02]} Kg7 {[%emt 0:00:02]} 76. Kd5 {[%emt 0:00:13]} Rf5+ {[%emt 0:00:06]} 77. Ke4 {[%emt 0:00:03]} Rf7 {[%emt 0:00:02]} 78. f5 {[%emt 0:00:03]} Re7+ {[%emt 0:00:18]} 79. Kf4 {[%emt 0:00:10]} Kf6 {[%emt 0:00:02]} 80. Qd6+ {[%emt 0:00:21]} Kf7 {[%emt 0:00:04]} 81. Kg5 {[%emt 0:00:06]} Re8 {[%emt 0:00:27]} 82. f6 {[%emt 0:00:06]} Rg8+ {[%emt 0:00:06]} 83. Kf5 {[%emt 0:00:01]} Re8 {[%emt 0:00:11]} 84. Qd7+ {[%emt 0:00:06]} Kf8 {[%emt 0:00:03]} 85. Qg7# {[%emt 0:00:02]} 1-0

[Event "African Games-chT 2019"]
[Site "Casablanca"]
[Date "2019.08.24"]
[Round "3.28"]
[White "Eshete, Ruth Leykun"]
[Black "Mentile, Lishen"]
[Result "0-1"]
[ECO "D10"]
[WhiteElo "1495"]
[BlackElo "1513"]
[Annotator "NA"]
[PlyCount "87"]
[EventDate "2019.08.24"]
[EventType "team-tourn"]
[EventCountry "MAR"]
[SourceTitle "playchess.com"]
[Source "ChessBase"]
[SourceQuality "1"]
[WhiteTeam "Ethiopia"]
[BlackTeam "Namibia"]
[WhiteTeamCountry "ETH"]
[BlackTeamCountry "NAM"]
[TimeControl "900+10"]

1. d4 {[%emt 0:00:00]} d5 {[%emt 0:00:00]} 2. c4 {[%emt 0:00:00]} c6 {[%emt 0:00:00]} 3. Nc3 {[%emt 0:00:05]} Nf6 {[%emt 0:00:00]} 4. Bf4 {[%emt 0:00:13]} Bf5 {[%emt 0:00:22]} 5. Nf3 {[%emt 0:00:35]} e6 {[%emt 0:00:33]} 6. a3 {[%emt 0:00:14]} h6 {[%emt 0:00:02]} 7. h3 {[%emt 0:00:32]} Be7 {[%emt 0:00:29]} 8. e3 {[%emt 0:00:03]} Nbd7 {[%emt 0:00:38]} 9. Be2 {[%emt 0:00:24]} dxc4 {[%emt 0:00:40]} 10. Bxc4 {[%emt 0:00:16]} Nb6 {[%emt 0:00:01]} 11. Bd3 {[%emt 0:00:21]} Bxd3 {[%emt 0:01:01]} 12. Qxd3 {[%emt 0:00:12]} O-O {[%emt 0:00:14]} 13. O-O {[%emt 0:00:15]} Nfd5 {[%emt 0:01:53]} 14. Nxd5 {[%emt 0:01:46]} Nxd5 {[%emt 0:00:06]} 15. Bh2 {[%emt 0:01:01]} Rc8 {[%emt 0:02:41]} 16. Rac1 Re8 {[%emt 0:01:17]} 17. Qe4 {[%emt 0:03:13]} Nf6 18. Qc2 {[%emt 0:02:47]} Qd5 {[%emt 0:00:14]} 19. Qd1 {[%emt 0:00:26]} Red8 {[%emt 0:00:29]} 20. Ne5 {[%emt 0:00:28]} Bd6 {[%emt 0:00:59]} 21. Nf3 {[%emt 0:00:53]} Bxh2+ {[%emt 0:00:08]} 22. Nxh2 {[%emt 0:00:02]} Ne4 {[%emt 0:00:01]} 23. Nf3 {[%emt 0:00:52]} f6 {[%emt 0:00:46]} 24. Nd2 {[%emt 0:01:20]} Nxd2 {[%emt 0:00:54]} 25. Qxd2 {[%emt 0:00:01]} e5 {[%emt 0:00:01]} 26. Rfd1 exd4 {[%emt 0:01:29]} 27. exd4 {[%emt 0:01:31]} Rd7 {[%emt 0:00:54]} 28. Qb4 {[%emt 0:01:06]} Rcd8 {[%emt 0:00:31]} 29. Qa4 a6 {[%emt 0:00:25]} 30. Rc5 {[%emt 0:00:41]} Qe4 {[%emt 0:00:19]} 31. Qb3+ {[%emt 0:00:06]} Kh8 {[%emt 0:00:25]} 32. Rc3 {[%emt 0:00:19]} Qd5 {[%emt 0:00:07]} 33. Qxd5 {[%emt 0:00:20]} Rxd5 {[%emt 0:00:01]} 34. Rb3 {[%emt 0:00:17]} R8d7 {[%emt 0:00:23]} 35. Rbd3 {[%emt 0:00:02]} c5 {[%emt 0:00:11]} 36. Kf1 {[%emt 0:00:19]} cxd4 {[%emt 0:00:11]} 37. Rc1 {[%emt 0:00:15]} Kg8 {[%emt 0:00:08]} 38. Ke2 {[%emt 0:00:02]} Kf7 {[%emt 0:00:00]} 39. Kf3 {[%emt 0:00:06]} Rf5+ {[%emt 0:00:19]} 40. Ke2 {[%emt 0:00:26]} Re7+ {[%emt 0:00:02]} 41. Kd2 {[%emt 0:00:02]} Rxf2+ {[%emt 0:00:01]} 42. Kd1 {[%emt 0:00:00]} Rxb2 {[%emt 0:00:00]} 43. Rxd4 {[%emt 0:00:28]} Rxg2 {[%emt 0:00:00]} 44. Ra1 0-1

[Event "African Games-chT 2019"]
[Site "Casablanca"]
[Date "2019.08.24"]
[Round "3.29"]
[White "Mwale, Joseph"]
[Black "Marie, Patrick"]
[Result "1/2-1/2"]
[ECO "B33"]
[WhiteElo "2231"]
[BlackElo "1921"]
[Annotator "NA"]
[PlyCount "103"]
[EventDate "2019.08.24"]
[EventType "team-tourn"]
[EventCountry "MAR"]
[SourceTitle "playchess.com"]
[Source "ChessBase"]
[SourceQuality "1"]
[WhiteTeam "MAW"]
[BlackTeam "Mauritius"]
[BlackTeamCountry "MRI"]
[TimeControl "900+10"]

1. e4 {[%emt 0:00:00]} c5 {[%emt 0:00:00]} 2. Nf3 {[%emt 0:00:00]} Nc6 {[%emt 0:00:00]} 3. d4 {[%emt 0:00:00]} cxd4 {[%emt 0:00:00]} 4. Nxd4 {[%emt 0:00:00]} Nf6 {[%emt 0:00:00]} 5. Nc3 {[%emt 0:00:00]} g6 {[%emt 0:00:00]} 6. Nxc6 {[%emt 0:00:00]} dxc6 {[%emt 0:00:00]} 7. Qxd8+ {[%emt 0:00:01]} Kxd8 {[%emt 0:00:01]} 8. e5 {[%emt 0:00:01]} Nd5 {[%emt 0:00:32]} 9. Nxd5 {[%emt 0:00:08]} cxd5 {[%emt 0:00:01]} 10. Bg5 {[%emt 0:00:03]} h6 {[%emt 0:00:17]} 11. Be3 {[%emt 0:00:13]} e6 {[%emt 0:00:30]} 12. O-O-O {[%emt 0:00:05]} Bd7 {[%emt 0:00:29]} 13. f4 {[%emt 0:00:04]} b6 {[%emt 0:00:24]} 14. Be2 {[%emt 0:00:33]} Rc8 {[%emt 0:00:53]} 15. g4 {[%emt 0:00:13]} Bc6 {[%emt 0:00:05]} 16. f5 {[%emt 0:00:09]} Bc5 {[%emt 0:01:13]} 17. Bxc5 {[%emt 0:00:19]} bxc5 {[%emt 0:00:02]} 18. fxe6 {[%emt 0:00:48]} fxe6 {[%emt 0:00:02]} 19. Rhf1 {[%emt 0:00:00]} Ke7 {[%emt 0:00:02]} 20. Rf6 {[%emt 0:00:13]} g5 {[%emt 0:00:38]} 21. Rd3 {[%emt 0:00:26]} Bb5 {[%emt 0:01:05]} 22. Re3 {[%emt 0:00:07]} Bxe2 {[%emt 0:00:12]} 23. Rxe2 {[%emt 0:00:01]} Rcf8 {[%emt 0:00:01]} 24. Ref2 {[%emt 0:00:05]} Rxf6 {[%emt 0:00:37]} 25. Rxf6 {[%emt 0:00:01]} h5 {[%emt 0:02:37]} 26. Rg6 {[%emt 0:00:17]} hxg4 {[%emt 0:00:03]} 27. Rxg5 {[%emt 0:00:10]} Rxh2 {[%emt 0:00:02]} 28. Rxg4 {[%emt 0:00:06]} Kf7 {[%emt 0:00:04]} 29. Rf4+ {[%emt 0:00:05]} Kg6 {[%emt 0:00:06]} 30. Rf6+ {[%emt 0:00:03]} Kg5 {[%emt 0:00:10]} 31. Rxe6 {[%emt 0:00:02]} Rh1+ {[%emt 0:00:01]} 32. Kd2 {[%emt 0:00:01]} Rh2+ {[%emt 0:00:02]} 33. Kd3 {[%emt 0:00:13]} Kf5 {[%emt 0:00:04]} 34. Ra6 {[%emt 0:01:17]} Rh3+ {[%emt 0:00:02]} 35. Kd2 {[%emt 0:00:02]} Rh2+ {[%emt 0:00:04]} 36. Ke3 {[%emt 0:00:43]} Kxe5 {[%emt 0:01:51]} 37. Rxa7 Rxc2 38. Rb7 {[%emt 0:00:33]} Rc4 {[%emt 0:02:09]} 39. b3 {[%emt 0:00:36]} Rh4 {[%emt 0:02:28]} 40. a4 {[%emt 0:00:12]} Rh3+ {[%emt 0:00:02]} 41. Ke2 {[%emt 0:00:03]} Kd4 {[%emt 0:00:01]} 42. a5 {[%emt 0:00:02]} Rh2+ {[%emt 0:00:09]} 43. Kf3 {[%emt 0:00:13]} Ra2 {[%emt 0:00:14]} 44. Rb5 {[%emt 0:03:06]} c4 {[%emt 0:00:01]} 45. bxc4 {[%emt 0:00:37]} Kxc4 {[%emt 0:00:01]} 46. Rb1 {[%emt 0:00:28]} Rxa5 {[%emt 0:00:03]} 47. Rc1+ {[%emt 0:00:09]} Kd4 {[%emt 0:00:36]} 48. Rd1+ {[%emt 0:00:06]} Kc3 {[%emt 0:00:31]} 49. Ke3 {[%emt 0:00:16]} Kc4 {[%emt 0:02:09]} 50. Rc1+ {[%emt 0:00:06]} Kb3 {[%emt 0:00:05]} 51. Kd4 {[%emt 0:00:04]} Kb2 {[%emt 0:00:51]} 52. Rc5 {[%emt 0:00:12]} 1/2-1/2

[Event "African Games-chT 2019"]
[Site "Casablanca"]
[Date "2019.08.24"]
[Round "3.30"]
[White "Naipal, Hoolan"]
[Black "Mphungu, Gerrard"]
[Result "0-1"]
[ECO "B91"]
[WhiteElo "1785"]
[BlackElo "2107"]
[Annotator "NA"]
[PlyCount "85"]
[EventDate "2019.08.24"]
[EventType "team-tourn"]
[EventCountry "MAR"]
[SourceTitle "playchess.com"]
[Source "ChessBase"]
[SourceQuality "1"]
[WhiteTeam "Mauritius"]
[BlackTeam "MAW"]
[WhiteTeamCountry "MRI"]
[TimeControl "900+10"]

1. e4 {[%emt 0:00:00]} c5 {[%emt 0:00:00]} 2. Nf3 {[%emt 0:00:00]} d6 {[%emt 0:00:00]} 3. d4 {[%emt 0:00:00]} cxd4 {[%emt 0:00:00]} 4. Nxd4 {[%emt 0:00:00]} Nf6 {[%emt 0:00:00]} 5. Nc3 {[%emt 0:00:03]} a6 {[%emt 0:00:00]} 6. g3 {[%emt 0:00:12]} e5 {[%emt 0:04:02]} 7. Nde2 {[%emt 0:00:02]} Be6 {[%emt 0:00:17]} 8. Bg2 {[%emt 0:00:24]} Be7 {[%emt 0:00:07]} 9. O-O {[%emt 0:00:38]} O-O {[%emt 0:00:27]} 10. Bg5 Nbd7 {[%emt 0:00:34]} 11. a4 {[%emt 0:02:18]} Qc7 {[%emt 0:01:52]} 12. Qd2 {[%emt 0:03:20]} Rfc8 {[%emt 0:00:50]} 13. Rfc1 {[%emt 0:00:06]} Nb6 {[%emt 0:00:36]} 14. b3 Rd8 {[%emt 0:00:56]} 15. Bxf6 {[%emt 0:01:28]} Bxf6 {[%emt 0:00:05]} 16. a5 {[%emt 0:00:24]} Nd7 {[%emt 0:00:07]} 17. Nd5 {[%emt 0:00:05]} Bxd5 {[%emt 0:00:13]} 18. exd5 {[%emt 0:00:07]} b6 {[%emt 0:00:33]} 19. c4 {[%emt 0:02:10]} Rdb8 {[%emt 0:00:23]} 20. b4 {[%emt 0:00:51]} Ra7 {[%emt 0:01:21]} 21. Ra2 {[%emt 0:03:41]} bxa5 {[%emt 0:00:42]} 22. Rxa5 {[%emt 0:00:23]} Qb6 {[%emt 0:00:48]} 23. c5 {[%emt 0:00:57]} Qxb4 {[%emt 0:01:08]} 24. Qxb4 {[%emt 0:00:06]} Rxb4 {[%emt 0:00:00]} 25. c6 {[%emt 0:00:19]} Nc5 26. h4 {[%emt 0:00:59]} Bd8 {[%emt 0:03:58]} 27. Ra3 {[%emt 0:00:36]} Ra8 {[%emt 0:00:01]} 28. f4 {[%emt 0:00:09]} f6 {[%emt 0:00:05]} 29. fxe5 {[%emt 0:00:05]} fxe5 {[%emt 0:00:07]} 30. Kh2 {[%emt 0:00:21]} Rab8 {[%emt 0:00:14]} 31. Rxc5 {[%emt 0:00:13]} dxc5 {[%emt 0:00:08]} 32. Rxa6 {[%emt 0:00:02]} Rb2 {[%emt 0:00:10]} 33. Nc3 {[%emt 0:00:04]} Rc2 {[%emt 0:00:08]} 34. Ne4 {[%emt 0:00:07]} Rbb2 {[%emt 0:00:30]} 35. Ra8 {[%emt 0:00:02]} Rxg2+ {[%emt 0:00:02]} 36. Kh3 {[%emt 0:00:01]} h5 {[%emt 0:00:07]} 37. Rxd8+ {[%emt 0:00:07]} Kf7 {[%emt 0:00:08]} 38. Ng5+ {[%emt 0:00:03]} Ke7 {[%emt 0:00:05]} 39. Rd7+ {[%emt 0:00:11]} Ke8 {[%emt 0:00:02]} 40. Nf3 {[%emt 0:00:23]} Rgf2 {[%emt 0:00:01]} 41. d6 {[%emt 0:00:21]} Rf1 {[%emt 0:00:41]} 42. Re7+ {[%emt 0:00:26]} Kf8 {[%emt 0:00:05]} 43. d7 0-1